bitfinex/quotes_BTCUSD_20240803
["timestamp","ask_amount","ask_price","bid_price","bid_amount"]
[1722704310302,0.327783,61016.0,61013.0,0.002]
[1722704310513,0.163896,61015.0,61012.0,0.991]
[1722704310715,0.001,61013.0,61012.0,0.997]
[1722704311131,0.001,61013.0,61012.0,0.991]
[1722704311349,0.002,61013.0,61012.0,1.15945924]
[1722704311779,0.002,61013.0,61012.0,1.41135924]
[1722704311780,0.001,61013.0,61012.0,1.41135924]
[1722704312203,0.001,61013.0,61012.0,1.51135924]
[1722704312412,0.001,61013.0,61012.0,2.23256524]
[1722704312619,0.001,61013.0,61012.0,2.58236924]
[1722704312841,0.00157439,61036.0,61022.0,0.4584]
[1722704313038,0.47251164,61037.0,61035.0,0.07875194]
[1722704313250,0.47251164,61037.0,61036.0,0.15745924]
[1722704313464,0.00907946,61051.0,61036.0,0.15745924]
[1722704313672,0.47251164,61047.0,61036.0,0.15745924]
[1722704313894,0.327635,61044.0,61023.0,0.1]
[1722704314190,0.163825,61041.0,61028.0,0.07875194]
[1722704314404,0.163803,61049.0,61035.0,0.07875194]
[1722704314624,0.001,61037.0,61036.0,0.16345924]
[1722704314830,0.163814,61045.0,61036.0,0.15745924]
[1722704315039,0.327584,61053.0,61036.0,0.15745924]
[1722704315244,0.327659,61039.0,61030.0,0.1]
[1722704315469,0.327659,61039.0,61014.0,0.327792]
[1722704315470,0.004,61044.0,61020.0,0.07875194]
[1722704315678,0.327666,61038.0,61027.0,0.07875194]
[1722704315883,0.00157439,61037.0,61036.0,0.005]
[1722704316101,0.32767,61037.0,61036.0,0.005]
[1722704316306,1.304975,61037.0,61036.0,0.005]
[1722704316520,1.98580424,61037.0,61036.0,0.005]
[1722704316927,1.80293374,61037.0,61036.0,0.005]
[1722704317107,0.66625924,61037.0,61015.0,0.1965]
[1722704317360,0.327751,61022.0,61015.0,0.1965]
[1722704317564,0.163881,61020.0,61015.0,0.1965]
[1722704317770,0.327686,61035.0,61015.0,0.1965]
[1722704317771,0.327709,61030.0,61017.0,0.07875194]
[1722704317946,0.327732,61026.0,61017.0,0.07875194]
[1722704318187,0.32774,61024.0,61017.0,0.07875194]
[1722704318398,0.163886,61018.0,61017.0,0.07875194]
[1722704318608,0.327715,61029.0,61015.0,0.1975]
[1722704318819,0.00157439,61028.0,61018.0,0.07875194]
[1722704319029,0.327735,61025.0,61018.0,0.07875194]
[1722704319275,0.4948,61037.0,61026.0,0.07875194]
[1722704319487,0.172836,61037.0,61026.0,0.23621118]
[1722704319698,0.16386,61028.0,61026.0,0.23621118]
[1722704319908,0.327676,61036.0,61026.0,0.15745924]
[1722704320110,0.3169,61044.0,61026.0,0.15745924]
[1722704320111,0.163852,61031.0,61026.0,0.15745924]
[1722704320317,0.163857,61029.0,61026.0,0.15745924]
[1722704320545,0.327695,61033.0,61026.0,0.15745924]
[1722704320749,0.327697,61032.0,61026.0,0.15745924]
[1722704320964,0.163851,61031.0,61026.0,0.15845924]
[1722704321177,0.163856,61029.0,61026.0,0.15745924]
[1722704321386,0.163876,61022.0,61018.0,0.07875194]
[1722704321594,0.163872,61023.0,61018.0,0.07875194]
[1722704321830,0.003,61036.0,61025.0,0.07875194]
[1722704321831,0.32771,61030.0,61025.0,0.07875194]
[1722704322067,0.163864,61027.0,61025.0,0.07875194]
[1722704322267,0.32771,61030.0,61018.0,0.07875194]
[1722704322268,0.00157439,61026.0,61018.0,0.07875194]
[1722704322468,0.001,61031.0,61026.0,0.005]
[1722704322892,0.001,61032.0,61025.0,0.07875194]
[1722704323116,0.001,61032.0,61025.0,0.08275194]
[1722704323324,0.163855,61030.0,61025.0,0.08275194]
[1722704323536,0.00157439,61043.0,61015.0,0.1965]
[1722704323537,0.1702771,61031.0,61015.0,0.1965]
[1722704323743,0.163875,61022.0,61016.0,0.15745924]
[1722704323950,0.491649,61019.0,61018.0,0.009]
[1722704324160,0.1827,61036.0,61018.0,0.009]
[1722704324161,0.327757,61021.0,61018.0,0.009]
[1722704324382,0.16388,61020.0,61015.0,0.1965]
[1722704324604,0.327764,61020.0,61015.0,0.1965]
[1722704324804,0.163883,61019.0,61015.0,0.1985]
[1722704324935,0.163876,61022.0,61017.0,0.07875194]
[1722704325145,0.2574,61029.0,61017.0,0.07875194]
[1722704325366,0.327735,61025.0,61018.0,0.011]
[1722704325540,0.163878,61021.0,61018.0,0.011]
[1722704325746,0.16386,61028.0,61018.0,0.16845924]
[1722704325951,0.163851,61031.0,61030.0,0.07875194]
[1722704326179,0.47036899,61031.0,61030.0,0.07875194]
[1722704326401,0.13622842,61031.0,61030.0,0.07875194]
[1722704326689,0.163856,61029.0,61024.0,0.07875194]
[1722704326981,0.328529,61032.0,61025.0,0.15745924]
[1722704327138,0.327763,61020.0,61017.0,0.07875194]
[1722704327341,0.30849624,61031.0,61017.0,0.07875194]
[1722704327342,0.163872,61023.0,61018.0,0.15745924]
[1722704327512,0.163878,61021.0,61018.0,0.15745924]
[1722704327735,0.327742,61024.0,61018.0,0.15745924]
[1722704327936,0.32773,61026.0,61018.0,0.15745924]
[1722704328141,0.33415774,61025.0,61018.0,0.15745924]
[1722704328299,0.33415974,61024.0,61018.0,0.15745924]
[1722704328493,0.327711,61030.0,61018.0,0.15745924]
[1722704328494,0.17028952,61023.0,61018.0,0.15745924]
[1722704328723,0.163886,61018.0,61010.0,0.07875194]
[1722704328930,0.2574,61026.0,61010.0,0.07875194]
[1722704328931,0.2574,61026.0,61017.0,0.07875194]
[1722704329134,0.30653897,61025.0,61018.0,0.41175924]
[1722704329338,0.00083,61032.0,61027.0,0.01]
[1722704329597,0.00083,61032.0,61031.0,0.07875194]
[1722704329864,0.00083,61032.0,61031.0,0.17875194]
[1722704330274,0.00083,61032.0,61031.0,0.4580705]
[1722704330474,0.00083,61032.0,61031.0,0.33621118]
[1722704330912,0.00183,61032.0,61031.0,0.33621118]
[1722704331150,0.00183,61032.0,61031.0,0.45812569]
[1722704331352,0.00183,61032.0,61031.0,0.33621118]
[1722704331554,0.00183,61032.0,61031.0,0.47212569]
[1722704331732,0.00183,61032.0,61031.0,0.35021118]
[1722704332151,0.00083,61032.0,61031.0,0.44776859]
[1722704332349,0.00083,61032.0,61031.0,0.47215394]
[1722704332519,0.00083,61032.0,61031.0,0.36221118]
[1722704332520,0.00183,61032.0,61031.0,0.36221118]
[1722704332722,0.00183,61032.0,61031.0,0.51406218]
[1722704332923,0.00183,61032.0,61031.0,0.33621118]
[1722704333124,0.00283,61032.0,61031.0,0.53606218]
[1722704333330,0.00283,61032.0,61031.0,0.82311118]
[1722704333532,0.00283,61032.0,61031.0,0.98696218]
[1722704333738,0.00283,61032.0,61031.0,1.31966418]
[1722704333910,0.00283,61032.0,61031.0,0.81811118]
[1722704335539,0.00283,61032.0,61031.0,0.98196218]
[1722704335743,0.00283,61032.0,61031.0,0.81811118]
[1722704336176,0.00283,61032.0,61031.0,0.74435924]
[1722704337827,0.00283,61032.0,61031.0,0.026]
[1722704338677,0.00283,61032.0,61031.0,0.80821024]
[1722704338877,0.00083,61032.0,61031.0,0.63235924]
[1722704339081,0.00083,61032.0,61031.0,0.71111118]
[1722704339292,0.00083,61032.0,61031.0,0.71611118]
[1722704339506,0.00083,61032.0,61031.0,0.71111118]
[1722704339746,0.00083,61032.0,61031.0,0.82511118]
[1722704340175,0.00083,61032.0,61031.0,0.81111118]
[1722704340404,0.00083,61032.0,61031.0,0.74635924]
[1722704340613,0.00083,61032.0,61031.0,0.49205924]
[1722704340833,0.00083,61032.0,61031.0,0.47805924]
[1722704342077,0.00083,61032.0,61024.0,0.45951859]
[1722704342078,0.00083,61032.0,61024.0,0.07875194]
[1722704342296,0.00083,61032.0,61025.0,0.15745924]
[1722704343018,0.00083,61032.0,61017.0,0.36185194]
[1722704343019,0.163859,61028.0,61017.0,0.36185194]
[1722704343226,0.163856,61030.0,61018.0,0.15745924]
[1722704343433,0.00083,61032.0,61018.0,0.15745924]
[1722704343855,0.327709,61030.0,61018.0,0.15745924]
[1722704344056,0.00157439,61031.0,61012.0,0.991913]
[1722704344058,0.4485,61028.0,61012.0,0.991913]
[1722704344263,0.491697,61013.0,61012.0,0.991913]
[1722704344741,0.819495,61013.0,61012.0,0.991913]
[1722704344941,1.48395424,61013.0,61012.0,0.991913]
[1722704345154,1.49682529,61013.0,61012.0,0.991913]
[1722704345335,0.043,61031.0,61012.0,0.991913]
[1722704345336,0.2758,61021.0,61012.0,0.991913]
[1722704345563,0.17032177,61020.0,61013.0,0.07875194]
[1722704345755,0.2758,61021.0,61020.0,0.07875194]
[1722704346037,0.163878,61021.0,61020.0,0.07875194]
[1722704346446,0.2758,61028.0,61020.0,0.07875194]
[1722704346866,0.327695,61033.0,61027.0,0.07875194]
[1722704346867,0.164678,61032.0,61027.0,0.07875194]
[1722704346977,0.00157439,61031.0,61027.0,0.07875194]
[1722704347181,0.163855,61030.0,61020.0,0.07875194]
[1722704347396,0.00157439,61031.0,61021.0,0.15745924]
[1722704347602,0.16542539,61031.0,61021.0,0.15745924]
[1722704347795,0.163851,61031.0,61021.0,0.15745924]
[1722704348300,0.327707,61030.0,61021.0,0.15745924]
[1722704348510,0.163864,61026.0,61021.0,0.15745924]
[1722704348722,0.00083,61032.0,61014.0,0.1]
[1722704348938,0.00157439,61031.0,61015.0,0.15745924]
[1722704349145,0.327734,61025.0,61015.0,0.15745924]
[1722704349336,0.327721,61028.0,61020.0,0.07875194]
[1722704349542,0.163868,61025.0,61020.0,0.07875194]
[1722704349783,0.163868,61025.0,61015.0,0.15745924]
[1722704349784,0.163878,61021.0,61015.0,0.15745924]
[1722704349992,0.327757,61021.0,61015.0,0.15745924]
[1722704350209,0.00083,61032.0,61015.0,0.15745924]
[1722704350414,0.163858,61029.0,61020.0,0.07875194]
[1722704350820,0.00083,61032.0,61020.0,0.07875194]
[1722704350821,0.00083,61032.0,61021.0,0.15745924]
[1722704351159,0.00083,61032.0,61013.0,0.07875194]
[1722704351160,0.327734,61025.0,61013.0,0.07875194]
[1722704351358,0.163863,61027.0,61020.0,0.07875194]
[1722704351612,0.163865,61026.0,61020.0,0.07875194]
[1722704351741,0.163865,61026.0,61014.0,0.15745924]
[1722704351742,0.163873,61023.0,61014.0,0.15745924]
[1722704351951,0.163874,61023.0,61014.0,0.15745924]
[1722704352223,0.00483,61032.0,61003.0,1.09035194]
[1722704352224,0.163899,61013.0,61003.0,1.09035194]
[1722704352464,0.491697,61013.0,61006.0,0.010142]
[1722704352903,0.163894,61015.0,61006.0,0.010142]
[1722704353131,0.163894,61015.0,61014.0,0.007]
[1722704353332,0.437091,61017.0,61014.0,0.007]
[1722704353541,0.163881,61020.0,61014.0,0.007]
[1722704353757,0.163878,61021.0,61014.0,0.007]
[1722704353968,0.2732,61027.0,61015.0,0.15745924]
[1722704354173,0.2732,61027.0,61014.0,0.011]
[1722704354382,0.2732,61027.0,61008.0,0.4675]
[1722704354383,0.16389,61017.0,61013.0,0.07875194]
[1722704354591,0.28243483,61027.0,61008.0,0.4675]
[1722704354798,0.491682,61015.0,61014.0,0.001]
[1722704355015,0.32776509,61026.0,61014.0,0.001]
[1722704355016,0.327767,61019.0,61014.0,0.001]
[1722704355228,0.28243483,61027.0,61014.0,0.001]
[1722704355658,0.17030494,61026.0,61013.0,0.07875194]
[1722704355862,0.163881,61020.0,61013.0,0.23621118]
[1722704356283,0.29343483,61027.0,61013.0,0.23621118]
[1722704356492,0.29343483,61027.0,61020.0,0.07875194]
[1722704356493,0.011,61027.0,61020.0,0.07875194]
[1722704357122,0.011,61027.0,61020.0,0.30075194]
[1722704357712,0.018,61027.0,61021.0,0.15745924]
[1722704357918,0.00083,61032.0,61021.0,0.15745924]
[1722704358330,0.004,61027.0,61021.0,0.15745924]
[1722704358748,0.00083,61032.0,61021.0,0.15745924]
[1722704358865,0.00083,61032.0,61021.0,0.16345924]
[1722704359088,0.164678,61032.0,61021.0,0.16345924]
[1722704359528,0.164678,61032.0,61021.0,0.16645924]
[1722704359808,0.00157439,61031.0,61021.0,0.16645924]
[1722704360015,0.164678,61032.0,61021.0,0.16645924]
[1722704360419,0.00083,61032.0,61021.0,0.16045924]
[1722704360611,0.00083,61032.0,61021.0,0.009]
[1722704360813,0.00157439,61031.0,61021.0,0.009]
[1722704361033,0.163862,61027.0,61021.0,0.003]
[1722704361242,0.163867,61025.0,61016.0,0.269]
[1722704361445,0.00083,61032.0,61021.0,0.001]
[1722704361653,0.163866,61026.0,61021.0,0.005]
[1722704361854,0.163868,61025.0,61017.0,0.15745924]
[1722704362055,0.00083,61032.0,61020.0,0.07875194]
[1722704362335,0.00083,61032.0,61027.0,0.07875194]
[1722704362460,0.00083,61032.0,61021.0,0.009]
[1722704362663,0.00083,61032.0,61027.0,0.07875194]
[1722704364005,0.00083,61032.0,61023.0,0.00327708]
[1722704364214,0.164678,61032.0,61027.0,0.001]
[1722704364425,0.00157439,61031.0,61027.0,0.001]
[1722704364619,0.00083,61032.0,61027.0,0.004]
[1722704364867,0.00083,61032.0,61027.0,0.001]
[1722704365052,0.163844,61034.0,61032.0,0.98859561]
[1722704365402,0.3,61066.0,61032.0,0.98859561]
[1722704365403,0.04895487,61053.0,61032.0,0.98859561]
[1722704365515,0.01,61054.0,61032.0,0.98859561]
[1722704365729,0.163833,61038.0,61032.0,0.98859561]
[1722704365924,0.163835,61037.0,61032.0,0.98859561]
[1722704366388,0.163832,61038.0,61032.0,0.98859561]
[1722704366583,0.16383,61039.0,61032.0,0.98859561]
[1722704366832,0.327658,61040.0,61032.0,0.98859561]
[1722704367000,0.327664,61039.0,61032.0,0.98859561]
[1722704367200,0.163835,61037.0,61032.0,0.98859561]
[1722704367348,0.003,61034.0,61032.0,0.98859561]
[1722704367750,0.327668,61038.0,61032.0,0.98859561]
[1722704367967,0.163836,61037.0,61032.0,0.98859561]
[1722704368453,0.163836,61037.0,61032.0,0.98959561]
[1722704368657,0.005,61039.0,61032.0,0.98959561]
[1722704368858,0.005,61039.0,61032.0,0.99259561]
[1722704369062,0.005,61039.0,61032.0,0.98959561]
[1722704369692,0.163827,61040.0,61032.0,0.98859561]
[1722704369899,0.00925447,61043.0,61032.0,0.98859561]
[1722704370107,0.003,61037.0,61032.0,0.98859561]
[1722704370310,0.16384,61035.0,61032.0,0.98859561]
[1722704370724,0.327673,61037.0,61032.0,0.98859561]
[1722704370943,0.163845,61033.0,61032.0,0.98859561]
[1722704371213,0.491536,61033.0,61032.0,0.98859561]
[1722704371430,0.491536,61033.0,61032.0,0.98959561]
[1722704371653,0.163845,61033.0,61032.0,0.98859561]
[1722704371868,0.327684,61035.0,61032.0,0.99059561]
[1722704372117,0.327655,61040.0,61032.0,0.98859561]
[1722704372346,0.491536,61033.0,61032.0,0.98859561]
[1722704372551,0.00931185,61044.0,61032.0,0.98859561]
[1722704372990,0.2144,61048.0,61032.0,0.98859561]
[1722704372991,0.327668,61038.0,61032.0,0.98859561]
[1722704373199,0.15745924,61045.0,61032.0,0.98859561]
[1722704373409,0.491536,61033.0,61032.0,0.99459561]
[1722704373612,2.52166824,61033.0,61032.0,0.99459561]
[1722704373823,2.99016328,61033.0,61032.0,0.98859561]
[1722704374032,2.99016328,61033.0,61032.0,0.98959561]
[1722704374271,3.31785428,61033.0,61032.0,0.63348312]
[1722704374492,3.31785428,61033.0,61032.0,0.63248312]
[1722704374902,3.32485428,61033.0,61032.0,0.63448312]
[1722704375161,3.32485428,61033.0,61014.0,0.000913]
[1722704375162,1.147258,61015.0,61014.0,0.000913]
[1722704375789,0.81947,61015.0,61014.0,0.000913]
[1722704377267,0.169894,61015.0,61014.0,0.001913]
[1722704377475,0.014,61015.0,61014.0,0.002913]
[1722704377677,0.491682,61015.0,61014.0,0.000913]
[1722704377892,0.81947,61015.0,61014.0,0.000913]
[1722704378099,0.82747,61015.0,61014.0,0.000913]
[1722704378308,0.82447,61015.0,61014.0,0.000913]
[1722704378612,0.82447,61015.0,61014.0,0.001913]
[1722704378613,0.009,61015.0,61014.0,0.001913]
[1722704378747,0.507682,61015.0,61014.0,0.002913]
[1722704378958,0.179894,61015.0,61014.0,0.002913]
[1722704379413,0.507682,61015.0,61014.0,0.002913]
[1722704379839,0.498682,61015.0,61014.0,0.001913]
[1722704380159,0.494682,61015.0,61014.0,0.000913]
[1722704380455,0.491682,61015.0,61014.0,0.000913]
[1722704380654,0.498682,61015.0,61014.0,0.000913]
[1722704381059,0.493682,61015.0,61014.0,0.000913]
[1722704381470,1.153258,61015.0,61014.0,0.000913]
[1722704383785,1.46225728,61015.0,61014.0,0.000913]
[1722704383949,1.73850524,61015.0,61014.0,0.000913]
[1722704384534,0.92547,61015.0,61014.0,0.000913]
[1722704384737,1.09181671,61015.0,61014.0,0.000913]
[1722704384889,0.92747,61015.0,61014.0,0.001913]
[1722704385096,1.25526923,61015.0,61014.0,0.001913]
[1722704385297,1.58305723,61015.0,61014.0,0.001913]
[1722704385495,1.57705723,61015.0,61014.0,0.000913]
[1722704386072,1.41271724,61015.0,61014.0,0.001913]
[1722704386277,1.58107212,61015.0,61014.0,0.001913]
[1722704386682,1.59107212,61015.0,61014.0,0.002913]
[1722704387008,1.58107212,61015.0,61014.0,0.001913]
[1722704387807,1.59207212,61015.0,61014.0,0.002913]
[1722704388007,1.58607212,61015.0,61014.0,0.001913]
[1722704388237,1.58606317,61015.0,61014.0,0.001913]
[1722704388443,1.59606317,61015.0,61014.0,0.002913]
[1722704388673,1.01081593,61015.0,61014.0,0.002913]
[1722704388902,0.502682,61015.0,61014.0,0.001913]
[1722704389096,0.174894,61015.0,61014.0,0.001913]
[1722704389305,0.01,61015.0,61014.0,0.001913]
[1722704389510,0.173894,61015.0,61014.0,0.001913]
[1722704389918,0.491682,61015.0,61014.0,0.000913]
[1722704390195,0.004,61015.0,61014.0,0.000913]
[1722704390419,0.005,61015.0,61014.0,0.000913]
[1722704390615,0.496682,61015.0,61014.0,0.000913]
[1722704391611,1.152258,61015.0,61014.0,0.000913]
[1722704392505,0.82447,61015.0,61014.0,0.000913]
[1722704392706,0.496682,61015.0,61014.0,0.000913]
[1722704393411,0.168894,61015.0,61014.0,0.000913]
[1722704393606,0.496682,61015.0,61014.0,0.000913]
[1722704393846,0.82447,61015.0,61014.0,0.000913]
[1722704395880,0.496682,61015.0,61014.0,0.000913]
[1722704396237,0.82447,61015.0,61014.0,0.000913]
[1722704397237,0.99480048,61015.0,61014.0,0.000913]
[1722704399025,1.32258848,61015.0,61014.0,0.000913]
[1722704400289,0.99480048,61015.0,61014.0,0.000913]
[1722704400624,0.17532926,61015.0,61014.0,0.64967224]
[1722704400833,0.17532926,61015.0,61014.0,0.492213]
[1722704400834,0.005,61015.0,61014.0,0.492213]
[1722704401043,0.82447,61015.0,61014.0,0.221713]
[1722704401246,0.496682,61015.0,61014.0,0.221713]
[1722704401453,0.005,61015.0,61014.0,0.221713]
[1722704401656,0.001,61015.0,61014.0,0.221713]
[1722704402087,0.003,61015.0,61014.0,0.221713]
[1722704402288,0.002,61015.0,61014.0,0.37917224]
[1722704402503,0.1,61038.0,61014.0,0.37917224]
[1722704402504,0.00953895,61024.0,61014.0,0.64967224]
[1722704402709,0.163891,61016.0,61015.0,0.00157439]
[1722704402888,0.491673,61016.0,61015.0,0.00157439]
[1722704403094,0.66198022,61016.0,61015.0,0.00157439]
[1722704403293,0.491682,61015.0,61014.0,0.000913]
[1722704403422,0.98977722,61015.0,61014.0,0.000913]
[1722704403626,1.31756522,61015.0,61014.0,0.000913]
[1722704404052,1.47502446,61015.0,61014.0,0.000913]
[1722704404265,2.73167112,61015.0,61014.0,0.000913]
[1722704404471,2.73167112,61015.0,61012.0,0.000913]
[1722704404472,1.157293,61013.0,61012.0,0.000913]
[1722704404676,2.20186095,61013.0,61012.0,0.000913]
[1722704405099,2.09855746,61013.0,61012.0,0.000913]
[1722704405340,2.21236342,61013.0,61012.0,0.000913]
[1722704405546,2.20236342,61013.0,61012.0,0.000913]
[1722704405752,1.92825024,61013.0,61012.0,0.000913]
[1722704405959,2.20242057,61013.0,61012.0,0.000913]
[1722704406371,2.21042057,61013.0,61012.0,0.001913]
[1722704406581,2.09861274,61013.0,61012.0,0.000913]
[1722704407007,2.10761274,61013.0,61012.0,0.001913]
[1722704407203,2.13761274,61013.0,61012.0,0.001913]
[1722704407410,2.29182543,61013.0,61012.0,0.002913]
[1722704407615,2.9446806,61013.0,61006.0,0.010142]
[1722704407944,2.9446806,61013.0,60992.0,0.010142]
[1722704407945,0.664559,60993.0,60992.0,0.010142]
[1722704408150,1.67965004,60993.0,60992.0,0.010142]
[1722704408363,2.37045604,60993.0,60992.0,0.010142]
[1722704408576,2.69836204,60993.0,60992.0,0.010142]
[1722704408788,2.70836204,60993.0,60992.0,0.010142]
[1722704408995,2.48510873,60993.0,60992.0,0.010142]
[1722704409234,2.00621,60992.0,60973.0,0.0001]
[1722704409475,2.37029592,60992.0,60973.0,0.0001]
[1722704409717,2.21581655,60992.0,60973.0,0.0001]
[1722704409972,2.21581655,60992.0,60981.0,0.2208]
[1722704409973,0.76229763,60992.0,60981.0,0.2208]
[1722704410179,0.33438663,60992.0,60981.0,0.2208]
[1722704410413,0.01,60993.0,60981.0,0.2208]
[1722704410614,0.819777,60992.0,60981.0,0.2208]
[1722704410825,1.147688,60992.0,60981.0,0.2208]
[1722704411341,0.819777,60992.0,60981.0,0.2208]
[1722704411471,0.827777,60992.0,60991.0,0.011153]
[1722704411664,0.841777,60992.0,60991.0,0.012153]
[1722704412068,1.16163627,60992.0,60991.0,0.011153]
[1722704412273,0.832777,60992.0,60991.0,0.011153]
[1722704412487,0.026,60992.0,60991.0,0.012153]
[1722704412702,0.353911,60992.0,60991.0,0.012153]
[1722704412966,0.026,60992.0,60991.0,0.011153]
[1722704413117,0.026,60992.0,60991.0,0.012153]
[1722704413118,0.032,60992.0,60991.0,0.012153]
[1722704413328,0.032,60992.0,60991.0,0.509053]
[1722704414145,0.032,60992.0,60991.0,0.66651224]
[1722704414352,0.019,60992.0,60991.0,0.66551224]
[1722704414560,0.019,60992.0,60991.0,0.87404647]
[1722704414781,0.47251164,61017.0,60995.0,0.01]
[1722704414986,0.47251164,61017.0,61007.0,0.4969]
[1722704415210,0.47251164,61019.0,61007.0,0.65593363]
[1722704415471,0.327719,61028.0,61015.0,0.07875194]
[1722704415672,0.327719,61028.0,61009.0,0.00157439]
[1722704415673,0.2751,61034.0,61016.0,0.2125]
[1722704415881,0.163861,61027.0,61017.0,0.00157439]
[1722704416099,0.327713,61029.0,61019.0,0.00157439]
[1722704416307,0.327713,61029.0,61016.0,0.36995924]
[1722704416308,0.009,61019.0,61017.0,0.00157439]
[1722704416517,0.009,61019.0,61018.0,0.44185924]
[1722704417151,0.009,61019.0,61018.0,0.75435924]
[1722704417569,0.009,61019.0,61018.0,0.75430924]
[1722704418200,0.00083,61032.0,61018.0,0.75430924]
[1722704418417,0.00083,61032.0,61019.0,0.1]
[1722704418623,0.01283,61032.0,61026.0,0.07875194]
[1722704418834,0.01283,61032.0,61027.0,0.15903363]
[1722704418835,0.00083,61032.0,61027.0,0.15903363]
[1722704419268,0.00083,61032.0,61029.0,0.4969]
[1722704419493,0.00083,61032.0,61030.0,0.15745924]
[1722704419704,0.00083,61032.0,61031.0,0.00157439]
[1722704419911,0.166678,61032.0,61031.0,0.00157439]
[1722704420119,0.00283,61032.0,61030.0,0.00157439]
[1722704420333,0.00283,61032.0,61023.0,0.2125]
[1722704420334,0.00383,61032.0,61029.0,0.01]
[1722704420806,0.163853,61030.0,61029.0,0.01]
[1722704421215,0.49156,61030.0,61029.0,0.01]
[1722704421427,0.00383,61032.0,61029.0,0.01]
[1722704421884,0.49156,61030.0,61029.0,0.01]
[1722704422094,0.819267,61030.0,61029.0,0.01]
[1722704422305,0.327713,61029.0,61023.0,0.2125]
[1722704422512,0.163857,61029.0,61023.0,0.2125]
[1722704422719,0.00583,61032.0,61024.0,0.00157439]
[1722704423169,0.00083,61032.0,61029.0,0.003]
[1722704423561,0.00083,61032.0,61030.0,0.00157439]
[1722704423767,0.00083,61032.0,61028.0,0.07875194]
[1722704423974,0.00083,61032.0,61029.0,0.15903363]
[1722704424177,0.00083,61032.0,61029.0,0.00157439]
[1722704424611,0.00383,61032.0,61025.0,0.00157439]
[1722704424813,0.00383,61032.0,61031.0,0.07875194]
[1722704425433,0.00383,61032.0,61031.0,0.75061118]
[1722704425863,0.00083,61032.0,61031.0,0.75061118]
[1722704426074,0.00083,61032.0,61031.0,0.75461118]
[1722704426288,0.00383,61032.0,61031.0,0.75461118]
[1722704426699,0.00083,61032.0,61031.0,0.75461118]
[1722704426898,0.00083,61032.0,61031.0,0.67185924]
[1722704427161,0.00283,61032.0,61031.0,0.69185924]
[1722704427516,0.00283,61032.0,61031.0,0.5344]
[1722704427718,0.00283,61032.0,61031.0,0.02]
[1722704428772,0.82207,61032.0,61031.0,0.02]
[1722704428974,0.00283,61032.0,61031.0,0.02]
[1722704429657,0.00283,61032.0,61031.0,0.40755924]
[1722704431148,0.00283,61032.0,61031.0,0.69185924]
[1722704431518,0.00283,61032.0,61031.0,0.85571024]
[1722704431727,0.00183,61032.0,61031.0,1.17241224]
[1722704431925,0.00183,61032.0,61031.0,0.84471024]
[1722704432139,0.00183,61032.0,61031.0,1.50211424]
[1722704432346,0.00183,61032.0,61031.0,1.63511424]
[1722704432553,0.00183,61032.0,61031.0,0.78385924]
[1722704432753,0.00183,61032.0,61031.0,0.6264]
[1722704432958,0.00183,61032.0,61031.0,0.77185924]
[1722704432959,0.00083,61032.0,61031.0,0.77185924]
[1722704433159,0.00183,61032.0,61031.0,0.78285924]
[1722704433364,0.00283,61032.0,61031.0,0.79185924]
[1722704433583,0.00183,61032.0,61031.0,0.78085924]
[1722704433789,0.00183,61032.0,61031.0,0.78185924]
[1722704433997,0.00183,61032.0,61031.0,0.79285924]
[1722704434166,0.00183,61032.0,61031.0,0.97971024]
[1722704434167,0.00283,61032.0,61031.0,0.97971024]
[1722704434370,0.00283,61032.0,61031.0,1.30741224]
[1722704434800,0.33704857,61059.0,61031.0,1.30741224]
[1722704434801,0.1802,61069.0,61042.0,0.163821]
[1722704435008,0.2861,61070.0,61047.0,0.07875194]
[1722704435217,0.2861,61070.0,61048.0,0.16073502]
[1722704435419,0.163775,61060.0,61049.0,0.2843]
[1722704435569,0.163768,61062.0,61050.0,0.15745924]
[1722704435801,0.327525,61064.0,61050.0,0.15745924]
[1722704436031,0.008,61060.0,61050.0,0.15745924]
[1722704436237,0.008,61060.0,61043.0,0.2301]
[1722704436417,0.008,61060.0,61051.0,0.15745924]
[1722704436871,0.327533,61063.0,61051.0,0.15745924]
[1722704436872,0.163771,61061.0,61051.0,0.15745924]
[1722704437076,0.163769,61062.0,61051.0,0.15745924]
[1722704437276,0.1,61075.0,61052.0,0.07875194]
[1722704437475,0.1,61069.0,61053.0,0.15745924]
[1722704438219,0.1802,61076.0,61053.0,0.15745924]
[1722704438220,0.011,61064.0,61054.0,0.2301]
[1722704438385,0.16375,61069.0,61055.0,0.15745924]
[1722704438576,0.29529444,61070.0,61058.0,0.07875194]
[1722704438785,0.001,61061.0,61059.0,0.44175924]
[1722704439188,0.014,61069.0,61060.0,0.07875194]
[1722704439390,0.001,61064.0,61061.0,0.15745924]
[1722704439789,0.16374,61073.0,61061.0,0.15745924]
[1722704439996,0.163734,61075.0,61061.0,0.15745924]
[1722704440172,0.1802,61077.0,61061.0,0.15745924]
[1722704440371,0.32746,61076.0,61061.0,0.15745924]
[1722704440687,0.1802,61077.0,61061.0,0.15745924]
[1722704440938,0.163739,61073.0,61061.0,0.15745924]
[1722704441140,0.327465,61076.0,61061.0,0.15745924]
[1722704441301,0.163739,61073.0,61061.0,0.15745924]
[1722704441756,0.18938632,61077.0,61059.0,0.2843]
[1722704441917,0.18938632,61077.0,61054.0,0.2301]
[1722704441918,0.1802,61069.0,61054.0,0.2301]
[1722704442116,0.163767,61062.0,61061.0,0.007]
[1722704442374,0.33765924,61069.0,61061.0,0.007]
[1722704442375,0.327497,61070.0,61061.0,0.02333218]
[1722704442515,0.327497,61070.0,61061.0,0.01633218]
[1722704442715,0.3275,61069.0,61061.0,0.01633218]
[1722704442893,0.163757,61066.0,61061.0,0.01633218]
[1722704443101,0.163767,61062.0,61061.0,0.01633218]
[1722704443533,0.818837,61062.0,61061.0,0.01633218]
[1722704443868,0.491302,61062.0,61061.0,0.01633218]